fUST/lending_fUST_20260519
["ID","MTS","AMOUNT","RATE_DAILY","PERIOD"]
[422636121,1779190232000,-841.78707672,9.484e-05,2]
[422636129,1779190232000,-1050.87612483,9.484e-05,2]
[422636134,1779190232000,-500.0,9.484e-05,2]
[422636133,1779190232000,-500.0,9.484e-05,2]
[422636135,1779190232000,-623.60612776,9.484e-05,2]
[422636137,1779190232000,-500.0,9.484e-05,2]
[422636140,1779190232000,-500.0,9.484e-05,2]
[422636141,1779190232000,-500.0,9.484e-05,2]
[422636149,1779190232000,-500.0,9.484e-05,2]
[422636139,1779190232000,-500.0,9.484e-05,2]
[422636136,1779190232000,-358.10931722,9.484e-05,2]
[422636148,1779190232000,-648.51727079,9.484e-05,2]
[422636144,1779190232000,-501.74773393,9.484e-05,2]
[422636146,1779190232000,-400.0,9.484e-05,2]
[422636143,1779190232000,-500.0,9.484e-05,2]
[422636138,1779190232000,-500.0,9.484e-05,2]
[422636145,1779190232000,-500.0,9.484e-05,2]
[422636142,1779190232000,-648.39980519,9.484e-05,2]
[422636239,1779190238000,-501.12217388,9.485e-05,2]
[422636221,1779190238000,-500.0,9.485e-05,2]
[422636238,1779190238000,-500.0,9.485e-05,2]
[422636228,1779190238000,-501.26311728,9.485e-05,2]
[422636227,1779190238000,-501.3979211,9.485e-05,2]
[422636224,1779190238000,-501.30718118,9.485e-05,2]
[422636223,1779190238000,-500.0,9.485e-05,2]
[422636241,1779190238000,-500.0,9.485e-05,2]
[422636206,1779190238000,-500.0,9.483e-05,2]
[422636217,1779190238000,-500.0,9.485e-05,2]
[422636212,1779190238000,-169.42905729,9.485e-05,2]
[422636208,1779190238000,-380.19648951,9.485e-05,2]
[422636214,1779190238000,-507.97671057,9.485e-05,2]
[422636215,1779190238000,-500.0,9.485e-05,2]
[422636204,1779190238000,-500.0,9.483e-05,2]
[422636243,1779190238000,-500.0,9.485e-05,2]
[422636210,1779190238000,-500.0,9.485e-05,2]
[422636219,1779190238000,-500.0,9.485e-05,2]
[422636202,1779190238000,-500.0,9.483e-05,2]
[422636230,1779190238000,-500.0,9.485e-05,2]
[422636236,1779190238000,-502.06659132,9.485e-05,2]
[422636245,1779190238000,-501.59499998,9.485e-05,2]
[422636273,1779190238000,-9.37391672,9.485e-05,2]
[422636260,1779190238000,-500.0,9.485e-05,2]
[422636266,1779190238000,-501.88424725,9.485e-05,2]
[422636262,1779190238000,-500.0,9.485e-05,2]
[422636271,1779190238000,-500.0,9.485e-05,2]
[422636259,1779190238000,-500.0,9.485e-05,2]
[422636269,1779190238000,-500.0,9.485e-05,2]
[422636267,1779190238000,-171.90250686,9.485e-05,2]
[422636264,1779190238000,-500.0,9.485e-05,2]
[422636252,1779190238000,-151.0,9.485e-05,2]
[422636254,1779190238000,-151.0,9.485e-05,2]
[422636255,1779190238000,-500.0,9.485e-05,2]
[422636248,1779190238000,-500.0,9.485e-05,2]
[422636246,1779190238000,-500.0,9.485e-05,2]
[422636250,1779190238000,-501.60028785,9.485e-05,2]
[422636234,1779190238000,-500.0,9.485e-05,2]
[422636232,1779190238000,-500.0,9.485e-05,2]
[422636257,1779190238000,-500.0,9.485e-05,2]
[422636335,1779190240000,-501.35082466,9.485e-05,2]
[422636336,1779190240000,-242.6189086,9.485e-05,2]
[422636334,1779190240000,-492.42793197,9.485e-05,2]
[422636342,1779190243000,-258.96103995,9.485e-05,2]
[422636341,1779190243000,-500.0,9.483e-05,2]
[422636344,1779190243000,-45261.52063169,9.487e-05,2]
[422636343,1779190243000,-500.0,9.485e-05,2]
[422636347,1779190247000,-5792.2066766,9.487e-05,2]
[422636346,1779190247000,-500.0,9.483e-05,2]
[422636349,1779190292000,-585.01531221,9.482e-05,2]
[422636354,1779190637000,152.0,0.00013876,30]
[422636357,1779190767000,165.935515,4.306e-05,2]
[422636390,1779191431000,-277.01657038,5.599e-05,2]
[422636389,1779191431000,-165.935515,5.341e-05,2]
[422636391,1779191431000,-165.935515,6.375e-05,2]
[422636392,1779191431000,-165.935515,7.409e-05,2]
[422636393,1779191431000,-326.87955305,7.599e-05,2]
[422636394,1779191431000,-263.60596709,8.198e-05,2]
[422636399,1779191431000,-300.0,9.099e-05,2]
[422636397,1779191431000,-1916.42747105,8.885e-05,2]
[422636398,1779191431000,-300.0,9.099e-05,2]
[422636396,1779191431000,-479.58645422,8.885e-05,2]
[422636400,1779191431000,-300.0,9.099e-05,2]
[422636395,1779191431000,-165.935515,8.444e-05,2]
[422636401,1779191432000,-304.9462406,9.099e-05,2]
[422636402,1779191432000,-390.1813,9.099e-05,2]
[422636404,1779191432000,-454.46815889,9.1e-05,2]
[422636403,1779191432000,-504.8724594,9.099e-05,2]
[422636407,1779191432000,-564.57510921,9.1e-05,2]
[422636406,1779191432000,-897.80489078,9.1e-05,2]
[422636408,1779191432000,-294.54479478,9.1e-05,2]
[422636409,1779191432000,-715.12037248,9.1e-05,2]
[422636405,1779191432000,-219.63029968,9.1e-05,2]
[422636485,1779191438000,-1095.94491907,9.282e-05,2]
[422636476,1779191438000,-1095.94491907,9.282e-05,2]
[422636475,1779191438000,-1095.94491907,9.282e-05,2]
[422636474,1779191438000,-269.41834212,9.282e-05,2]
[422636478,1779191438000,-1095.94491907,9.282e-05,2]
[422636479,1779191438000,-1095.94491907,9.282e-05,2]
[422636480,1779191438000,-1095.94491907,9.282e-05,2]
[422636482,1779191438000,-1095.94491907,9.282e-05,2]
[422636483,1779191438000,-1095.94491907,9.282e-05,2]
[422636484,1779191438000,-1095.94491907,9.282e-05,2]
[422636501,1779191438000,-466.3902692,9.282e-05,2]
[422636486,1779191438000,-500.0,9.282e-05,2]
[422636487,1779191438000,-500.0,9.282e-05,2]
[422636489,1779191438000,-1095.94491907,9.282e-05,2]
[422636490,1779191438000,-500.0,9.282e-05,2]
[422636491,1779191438000,-500.0,9.282e-05,2]
[422636492,1779191438000,-285.42468144,9.282e-05,2]
[422636477,1779191438000,-1095.94491907,9.282e-05,2]
[422636503,1779191438000,-500.0,9.282e-05,2]
[422636502,1779191438000,-500.0,9.282e-05,2]
[422636493,1779191438000,-1095.94491907,9.282e-05,2]
[422636488,1779191438000,-500.0,9.282e-05,2]
[422636472,1779191438000,-500.0,9.282e-05,2]
[422636466,1779191438000,-500.0,9.281e-05,2]
[422636470,1779191438000,-500.0,9.282e-05,2]
[422636444,1779191438000,-619.9270157,9.1e-05,2]
[422636447,1779191438000,-418.02568088,9.245e-05,2]
[422636449,1779191438000,-500.0,9.281e-05,2]
[422636445,1779191438000,-1725.53305931,9.1e-05,2]
[422636451,1779191438000,-805.45,9.281e-05,2]
[422636463,1779191438000,-598.74,9.281e-05,2]
[422636455,1779191438000,-500.0,9.281e-05,2]
[422636453,1779191438000,-500.0,9.281e-05,2]
[422636458,1779191438000,-500.0,9.281e-05,2]
[422636452,1779191438000,-500.0,9.281e-05,2]
[422636473,1779191438000,-1095.94491907,9.282e-05,2]
[422636460,1779191438000,-500.0,9.281e-05,2]
[422636459,1779191438000,-500.0,9.281e-05,2]
[422636462,1779191438000,-500.0,9.281e-05,2]
[422636461,1779191438000,-500.0,9.281e-05,2]
[422636464,1779191438000,-500.0,9.281e-05,2]
[422636496,1779191438000,-500.0,9.282e-05,2]
[422636465,1779191438000,-500.0,9.281e-05,2]
[422636467,1779191438000,-500.0,9.281e-05,2]
[422636469,1779191438000,-500.0,9.281e-05,2]
[422636471,1779191438000,-1095.94491907,9.282e-05,2]
[422636468,1779191438000,-1071.74,9.281e-05,2]
[422636457,1779191438000,-500.0,9.281e-05,2]
[422636494,1779191438000,-500.0,9.282e-05,2]
[422636481,1779191438000,-1095.94491907,9.282e-05,2]
[422636495,1779191438000,-500.0,9.282e-05,2]
[422636525,1779191438000,-500.0,9.282e-05,2]
[422636529,1779191438000,-1095.94491907,9.282e-05,2]
[422636526,1779191438000,-500.0,9.282e-05,2]
[422636532,1779191438000,-279.8194203,9.282e-05,2]
[422636530,1779191438000,-500.0,9.282e-05,2]
[422636531,1779191438000,-500.0,9.282e-05,2]
[422636533,1779191438000,-220.1805797,9.282e-05,2]
[422636536,1779191438000,-1095.94491907,9.282e-05,2]
[422636541,1779191438000,-1191.84009948,9.282e-05,2]
[422636537,1779191438000,-500.0,9.282e-05,2]
[422636520,1779191438000,-500.0,9.282e-05,2]
[422636535,1779191438000,-500.0,9.282e-05,2]
[422636540,1779191438000,-1191.84009948,9.282e-05,2]
[422636534,1779191438000,-500.0,9.282e-05,2]
[422636542,1779191438000,-1191.84009948,9.282e-05,2]
[422636538,1779191438000,-1095.94491907,9.282e-05,2]
[422636543,1779191438000,-1191.84009948,9.282e-05,2]
[422636545,1779191438000,-1191.84009948,9.282e-05,2]
[422636544,1779191438000,-1191.84009948,9.282e-05,2]
[422636499,1779191438000,-500.0,9.282e-05,2]
[422636547,1779191438000,-500.0,9.282e-05,2]
[422636548,1779191438000,-500.0,9.282e-05,2]
[422636539,1779191438000,-500.0,9.282e-05,2]
[422636523,1779191438000,-203.85619062,9.282e-05,2]
[422636546,1779191438000,-1191.84009948,9.282e-05,2]
[422636527,1779191438000,-500.0,9.282e-05,2]
[422636497,1779191438000,-1095.94491907,9.282e-05,2]
[422636498,1779191438000,-500.0,9.282e-05,2]
[422636505,1779191438000,-500.0,9.282e-05,2]
[422636504,1779191438000,-500.0,9.282e-05,2]
[422636506,1779191438000,-500.0,9.282e-05,2]
[422636509,1779191438000,-500.0,9.282e-05,2]
[422636508,1779191438000,-500.0,9.282e-05,2]
[422636510,1779191438000,-500.0,9.282e-05,2]
[422636515,1779191438000,-500.0,9.282e-05,2]
[422636513,1779191438000,-500.0,9.282e-05,2]
[422636507,1779191438000,-500.0,9.282e-05,2]
[422636512,1779191438000,-462.90190481,9.282e-05,2]
[422636511,1779191438000,-500.0,9.282e-05,2]
[422636522,1779191438000,-296.14380938,9.282e-05,2]
[422636524,1779191438000,-500.0,9.282e-05,2]
[422636521,1779191438000,-500.0,9.282e-05,2]
[422636519,1779191438000,-500.0,9.282e-05,2]
[422636528,1779191438000,-1095.94491907,9.282e-05,2]
[422636518,1779191438000,-500.0,9.282e-05,2]
[422636514,1779191438000,-500.0,9.282e-05,2]
[422636516,1779191438000,-500.0,9.282e-05,2]
[422636500,1779191438000,-500.0,9.282e-05,2]
[422636517,1779191438000,-500.0,9.282e-05,2]
[422636558,1779191439000,-990.72703622,9.283e-05,2]
[422636557,1779191439000,-3528.57304545,9.283e-05,2]
[422636556,1779191439000,-50638.23738305,9.283e-05,2]
[422636554,1779191439000,-500.0,9.282e-05,2]
[422636553,1779191439000,-166.76412478,9.282e-05,2]
[422636552,1779191439000,-500.0,9.282e-05,2]
[422636551,1779191439000,-300.0,9.282e-05,2]
[422636550,1779191439000,-1191.84009948,9.282e-05,2]
[422636549,1779191439000,-500.0,9.282e-05,2]
[422636555,1779191439000,-334.18123867,9.282e-05,2]
[422636572,1779191441000,-2243.08747746,9.283e-05,2]
[422636573,1779191441000,-341.44406342,9.283e-05,2]
[422636574,1779191441000,-1693.88522798,9.283e-05,2]
[422636571,1779191441000,-7457.91225139,9.283e-05,2]
[422636591,1779191443000,-18471.13165892,9.283e-05,2]
[422636592,1779191443000,-1499.24011426,9.283e-05,2]
[422636589,1779191443000,-1051.3502,9.283e-05,2]
[422636590,1779191443000,-454.96465952,9.283e-05,2]
[422636587,1779191443000,-151.0,9.282e-05,2]
[422636588,1779191443000,-151.0,9.282e-05,2]
[422636586,1779191443000,-151.0,9.282e-05,2]
[422636607,1779191446000,-6507.01992222,9.283e-05,2]
[422636605,1779191446000,-151.0,9.282e-05,2]
[422636606,1779191446000,-7143.10220124,9.283e-05,2]
[422636608,1779191447000,-5181.52053099,9.283e-05,2]
[422636635,1779192632000,-76.27428037,8.982e-05,2]
[422636633,1779192632000,-198.78707172,8.198e-05,2]
[422636637,1779192632000,-426.02349547,8.982e-05,2]
[422636636,1779192632000,-462.31855912,8.982e-05,2]
[422636634,1779192632000,-264.93864791,8.742e-05,2]
[422636868,1779192640000,-377.93415523,8.982e-05,2]
[422636871,1779192640000,-269.04288396,8.982e-05,2]
[422636870,1779192640000,-803.9576507,8.982e-05,2]
[422636869,1779192640000,-803.9576507,8.982e-05,2]
[422636887,1779192647000,-500.0,8.982e-05,2]
[422636884,1779192647000,-418.48780769,8.982e-05,2]
[422636886,1779192647000,-803.9576507,8.982e-05,2]
[422636885,1779192647000,-162.54465609,8.982e-05,2]
[422636883,1779192647000,-500.0,8.982e-05,2]
[422636895,1779192647000,-803.9576507,8.982e-05,2]
[422636880,1779192647000,-803.9576507,8.982e-05,2]
[422636879,1779192647000,-803.9576507,8.982e-05,2]
[422636878,1779192647000,-803.9576507,8.982e-05,2]
[422636877,1779192647000,-534.91476674,8.982e-05,2]
[422636881,1779192647000,-803.9576507,8.982e-05,2]
[422636892,1779192647000,-803.9576507,8.982e-05,2]
[422636882,1779192647000,-803.9576507,8.982e-05,2]
[422636896,1779192647000,-803.9576507,8.982e-05,2]
[422636902,1779192647000,-844.15553324,8.982e-05,2]
[422636903,1779192647000,-2460.68542007,8.983e-05,2]
[422636900,1779192647000,-617.65527784,8.982e-05,2]
[422636901,1779192647000,-844.15553324,8.982e-05,2]
[422636899,1779192647000,-226.5002554,8.982e-05,2]
[422636898,1779192647000,-844.15553324,8.982e-05,2]
[422636893,1779192647000,-803.9576507,8.982e-05,2]
[422636894,1779192647000,-500.0,8.982e-05,2]
[422636891,1779192647000,-803.9576507,8.982e-05,2]
[422636888,1779192647000,-500.0,8.982e-05,2]
[422636897,1779192647000,-844.15553324,8.982e-05,2]
[422636889,1779192647000,-803.9576507,8.982e-05,2]
[422636890,1779192647000,-803.9576507,8.982e-05,2]
[422636914,1779192996000,5508.0,0.00016,30]
[422636973,1779193832000,-976.25152329,8.683e-05,2]
[422636966,1779193832000,-605.52935036,8.683e-05,2]
[422637073,1779193838000,-500.0,8.782e-05,2]
[422637080,1779193838000,-984.45800521,8.782e-05,2]
[422637074,1779193838000,-984.45800521,8.782e-05,2]
[422637070,1779193838000,-984.45800521,8.782e-05,2]
[422637068,1779193838000,-984.45800521,8.782e-05,2]
[422637071,1779193838000,-984.45800521,8.782e-05,2]
[422637066,1779193838000,-984.45800521,8.782e-05,2]
[422637065,1779193838000,-984.45800521,8.782e-05,2]
[422637059,1779193838000,-984.45800521,8.782e-05,2]
[422637055,1779193838000,-984.45800521,8.782e-05,2]
[422637083,1779193838000,-984.45800521,8.782e-05,2]
[422637051,1779193838000,-551.46964777,8.782e-05,2]
[422637053,1779193838000,-984.45800521,8.782e-05,2]
[422637049,1779193838000,-300.0,8.781e-05,2]
[422637047,1779193838000,-14366.75843345,8.683e-05,2]
[422637033,1779193838000,-3602.28317333,8.683e-05,2]
[422637061,1779193838000,-984.45800521,8.782e-05,2]
[422637081,1779193838000,-984.45800521,8.782e-05,2]
[422637063,1779193838000,-984.45800521,8.782e-05,2]
[422637082,1779193838000,-984.45800521,8.782e-05,2]
[422637084,1779193838000,-984.45800521,8.782e-05,2]
[422637091,1779193838000,-1082.90380572,8.782e-05,2]
[422637090,1779193838000,-1082.90380572,8.782e-05,2]
[422637092,1779193838000,-1082.90380572,8.782e-05,2]
[422637086,1779193838000,-500.0,8.782e-05,2]
[422637096,1779193838000,-1082.90380572,8.782e-05,2]
[422637093,1779193838000,-1082.90380572,8.782e-05,2]
[422637087,1779193838000,-425.46585498,8.782e-05,2]
[422637089,1779193838000,-500.0,8.782e-05,2]
[422637057,1779193838000,-984.45800521,8.782e-05,2]
[422637095,1779193838000,-1082.90380572,8.782e-05,2]
[422637094,1779193838000,-1082.90380572,8.782e-05,2]
[422637079,1779193838000,-383.84005437,8.782e-05,2]
[422637085,1779193838000,-984.45800521,8.782e-05,2]
[422637078,1779193838000,-500.0,8.782e-05,2]
[422637077,1779193838000,-500.0,8.782e-05,2]
[422637076,1779193838000,-500.0,8.782e-05,2]
[422637075,1779193838000,-984.45800521,8.782e-05,2]
[422637088,1779193838000,-984.45800521,8.782e-05,2]
[422637103,1779193839000,-500.0,8.782e-05,2]
[422637102,1779193839000,-500.0,8.782e-05,2]
[422637112,1779193839000,-497.36665752,8.782e-05,2]
[422637100,1779193839000,-166.76412478,8.782e-05,2]
[422637098,1779193839000,-500.0,8.782e-05,2]
[422637111,1779193839000,-2.63334248,8.782e-05,2]
[422637097,1779193839000,-1082.90380572,8.782e-05,2]
[422637099,1779193839000,-771.89,8.782e-05,2]
[422637101,1779193839000,-152.09017721,8.782e-05,2]
[422637108,1779193839000,-573.79,8.782e-05,2]
[422637110,1779193839000,-500.0,8.782e-05,2]
[422637106,1779193839000,-500.0,8.782e-05,2]
[422637104,1779193839000,-500.0,8.782e-05,2]
[422637109,1779193839000,-608.19541792,8.782e-05,2]
[422637107,1779193839000,-500.0,8.782e-05,2]
[422637113,1779193839000,-500.0,8.782e-05,2]
[422637114,1779193839000,-500.0,8.782e-05,2]
[422637117,1779193839000,-54609.89719591,8.783e-05,2]
[422637115,1779193839000,-1027.08,8.782e-05,2]
[422637118,1779193839000,-33243.35780615,8.783e-05,2]
[422637116,1779193839000,-500.0,8.782e-05,2]
[422637105,1779193839000,-500.0,8.782e-05,2]
[422637300,1779193843000,-302.62139999,8.782e-05,2]
[422637303,1779193843000,-401.72569311,8.783e-05,2]
[422637304,1779193843000,-10828.6594506,8.783e-05,2]
[422637306,1779193843000,-2682.75126377,8.783e-05,2]
[422637302,1779193843000,-5235.2123139,8.783e-05,2]
[422637305,1779193843000,-1335.28898699,8.783e-05,2]
[422637301,1779193843000,-197.37860001,8.782e-05,2]
[422637322,1779193846000,-3875.2381898,8.783e-05,2]
[422637321,1779193846000,-17703.52406791,8.783e-05,2]
[422637324,1779193847000,-6692.46837274,8.783e-05,2]
[422637323,1779193847000,-97442.93744851,8.783e-05,2]
[422637325,1779193892000,-585.01531221,8.781e-05,2]
[422637329,1779194085000,159.608317,3.982e-05,2]
[422637342,1779194926000,151.0,0.000178,120]
[422637345,1779194956000,151.0,0.000178,120]
[422637346,1779194996000,151.0,0.000178,120]
[422637414,1779195032000,-500.0,8.581e-05,2]
[422637412,1779195032000,-984.29,8.581e-05,2]
[422637407,1779195032000,-549.89,8.581e-05,2]
[422637404,1779195032000,-490.16365868,8.581e-05,2]
[422637406,1779195032000,-500.0,8.581e-05,2]
[422637410,1779195032000,-500.0,8.581e-05,2]
[422637384,1779195032000,-9.83634132,8.581e-05,2]
[422637380,1779195032000,-300.0,8.58e-05,2]
[422637382,1779195032000,-500.0,8.581e-05,2]
[422637415,1779195033000,-290.88521151,8.581e-05,2]
[422637419,1779195033000,-5016.90673868,8.582e-05,2]
[422637417,1779195033000,-264.87111715,8.582e-05,2]
[422637452,1779195037000,151.0,0.000178,120]
[422637505,1779195038000,-1065.77,8.582e-05,2]
[422637500,1779195038000,-500.0,8.581e-05,2]
[422637502,1779195038000,-150.45964797,8.582e-05,2]
[422637501,1779195038000,-415.99379034,8.582e-05,2]
[422637503,1779195038000,-500.0,8.582e-05,2]
[422637504,1779195038000,-500.0,8.582e-05,2]
[422637506,1779195038000,-692.33,8.582e-05,2]
[422637507,1779195038000,-500.0,8.582e-05,2]
[422637508,1779195038000,-6729.71,8.582e-05,2]
[422637510,1779195038000,-1300.49,8.582e-05,2]
[422637511,1779195038000,-596.21,8.582e-05,2]
[422637509,1779195038000,-500.0,8.582e-05,2]
[422637512,1779195038000,-500.0,8.582e-05,2]
[422637555,1779195039000,-500.0,8.781e-05,2]
[422637551,1779195039000,-500.0,8.682e-05,2]
[422637553,1779195039000,-501.92690453,8.682e-05,2]
[422637549,1779195039000,-500.0,8.682e-05,2]
[422637554,1779195039000,-501.73192149,8.682e-05,2]
[422637552,1779195039000,-500.0,8.682e-05,2]
[422637556,1779195039000,-544.46534888,8.781e-05,2]
[422637550,1779195039000,-458.42941753,8.682e-05,2]
[422637548,1779195039000,-500.0,8.682e-05,2]
[422637547,1779195039000,-500.0,8.682e-05,2]
[422637546,1779195039000,-500.0,8.682e-05,2]
[422637572,1779195039000,-501.56126943,8.781e-05,2]
[422637559,1779195039000,-501.46782573,8.781e-05,2]
[422637568,1779195039000,-583.58120529,8.781e-05,2]
[422637558,1779195039000,-501.87134048,8.781e-05,2]
[422637557,1779195039000,-518.57610363,8.781e-05,2]
[422637561,1779195039000,-500.0,8.781e-05,2]
[422637562,1779195039000,-500.0,8.781e-05,2]
[422637564,1779195039000,-455.11965153,8.781e-05,2]
[422637563,1779195039000,-500.0,8.781e-05,2]
[422637565,1779195039000,-500.0,8.781e-05,2]
[422637566,1779195039000,-500.0,8.781e-05,2]
[422637570,1779195039000,-501.67144495,8.781e-05,2]
[422637569,1779195039000,-500.0,8.781e-05,2]
[422637567,1779195039000,-501.33027063,8.781e-05,2]
[422637543,1779195039000,-725.0291,8.682e-05,2]
[422637573,1779195039000,-500.0,8.781e-05,2]
[422637560,1779195039000,-500.0,8.781e-05,2]
[422637545,1779195039000,-500.0,8.682e-05,2]
[422637530,1779195039000,-500.0,8.582e-05,2]
[422637542,1779195039000,-500.0,8.682e-05,2]
[422637515,1779195039000,-500.0,8.582e-05,2]
[422637513,1779195039000,-500.0,8.582e-05,2]
[422637514,1779195039000,-739.73,8.582e-05,2]
[422637516,1779195039000,-500.0,8.582e-05,2]
[422637519,1779195039000,-500.0,8.582e-05,2]
[422637518,1779195039000,-500.0,8.582e-05,2]
[422637517,1779195039000,-1055.5,8.582e-05,2]
[422637520,1779195039000,-500.0,8.582e-05,2]
[422637521,1779195039000,-500.0,8.582e-05,2]
[422637522,1779195039000,-500.0,8.582e-05,2]
[422637526,1779195039000,-500.0,8.582e-05,2]
[422637524,1779195039000,-909.15,8.582e-05,2]
[422637527,1779195039000,-500.0,8.582e-05,2]
[422637544,1779195039000,-500.0,8.682e-05,2]
[422637528,1779195039000,-500.0,8.582e-05,2]
[422637525,1779195039000,-500.0,8.582e-05,2]
[422637529,1779195039000,-500.0,8.582e-05,2]
[422637532,1779195039000,-500.0,8.681e-05,2]
[422637531,1779195039000,-500.0,8.582e-05,2]
[422637533,1779195039000,-585.01531221,8.682e-05,2]
[422637534,1779195039000,-530.02,8.682e-05,2]
[422637537,1779195039000,-500.0,8.682e-05,2]
[422637535,1779195039000,-500.0,8.682e-05,2]
[422637538,1779195039000,-239.61777077,8.682e-05,2]
[422637536,1779195039000,-500.0,8.682e-05,2]
[422637540,1779195039000,-500.0,8.682e-05,2]
[422637541,1779195039000,-517.29116514,8.682e-05,2]
[422637539,1779195039000,-433.68864525,8.682e-05,2]
[422637523,1779195039000,-500.0,8.582e-05,2]
[422637571,1779195039000,-602.68973818,8.781e-05,2]
[422637597,1779195039000,-650.0,8.783e-05,2]
[422637574,1779195039000,-500.0,8.781e-05,2]
[422637608,1779195039000,-650.0,8.783e-05,2]
[422637609,1779195039000,-650.0,8.783e-05,2]
[422637611,1779195039000,-650.0,8.783e-05,2]
[422637610,1779195039000,-650.0,8.783e-05,2]
[422637612,1779195039000,-650.0,8.783e-05,2]
[422637614,1779195039000,-650.0,8.783e-05,2]
[422637615,1779195039000,-601.30248977,8.783e-05,2]
[422637617,1779195039000,-166.0,8.783e-05,2]
[422637616,1779195039000,-174.29498612,8.783e-05,2]
[422637618,1779195039000,-166.0,8.783e-05,2]
[422637620,1779195039000,-180.0,8.783e-05,2]
[422637619,1779195039000,-166.0,8.783e-05,2]
[422637621,1779195039000,-180.45194706,8.783e-05,2]
[422637625,1779195039000,-650.0,8.783e-05,2]
[422637623,1779195039000,-650.0,8.783e-05,2]
[422637626,1779195039000,-164.0,8.783e-05,2]
[422637624,1779195039000,-650.0,8.783e-05,2]
[422637622,1779195039000,-180.0,8.783e-05,2]
[422637628,1779195039000,-650.0,8.783e-05,2]
[422637627,1779195039000,-164.0,8.783e-05,2]
[422637629,1779195039000,-167.04656377,8.783e-05,2]
[422637630,1779195039000,-162.380719,8.838e-05,2]
[422637631,1779195039000,-537.6845,8.838e-05,2]
[422637634,1779195039000,-315.53830768,8.838e-05,2]
[422637633,1779195039000,-500.0,8.838e-05,2]
[422637632,1779195039000,-537.6845,8.838e-05,2]
[422637635,1779195039000,-500.0,8.855e-05,2]
[422637613,1779195039000,-650.0,8.783e-05,2]
[422637607,1779195039000,-650.0,8.783e-05,2]
[422637575,1779195039000,-500.0,8.781e-05,2]
[422637604,1779195039000,-650.0,8.783e-05,2]
[422637577,1779195039000,-151.0,8.782e-05,2]
[422637576,1779195039000,-500.0,8.782e-05,2]
[422637579,1779195039000,-650.0,8.783e-05,2]
[422637580,1779195039000,-650.0,8.783e-05,2]
[422637582,1779195039000,-650.0,8.783e-05,2]
[422637578,1779195039000,-151.0,8.782e-05,2]
[422637581,1779195039000,-650.0,8.783e-05,2]
[422637606,1779195039000,-650.0,8.783e-05,2]
[422637586,1779195039000,-650.0,8.783e-05,2]
[422637584,1779195039000,-650.0,8.783e-05,2]
[422637583,1779195039000,-650.0,8.783e-05,2]
[422637587,1779195039000,-650.0,8.783e-05,2]
[422637589,1779195039000,-650.0,8.783e-05,2]
[422637588,1779195039000,-650.0,8.783e-05,2]
[422637585,1779195039000,-650.0,8.783e-05,2]
[422637590,1779195039000,-650.0,8.783e-05,2]
[422637591,1779195039000,-650.0,8.783e-05,2]
[422637603,1779195039000,-650.0,8.783e-05,2]
[422637601,1779195039000,-650.0,8.783e-05,2]
[422637605,1779195039000,-650.0,8.783e-05,2]
[422637598,1779195039000,-650.0,8.783e-05,2]
[422637599,1779195039000,-650.0,8.783e-05,2]
[422637602,1779195039000,-650.0,8.783e-05,2]
[422637596,1779195039000,-650.0,8.783e-05,2]
[422637595,1779195039000,-650.0,8.783e-05,2]
[422637594,1779195039000,-650.0,8.783e-05,2]
[422637592,1779195039000,-650.0,8.783e-05,2]
[422637593,1779195039000,-650.0,8.783e-05,2]
[422637600,1779195039000,-650.0,8.783e-05,2]
[422637674,1779195040000,-500.0,8.956e-05,2]
[422637677,1779195040000,-500.0,8.956e-05,2]
[422637685,1779195040000,-500.0,8.956e-05,2]
[422637676,1779195040000,-500.0,8.956e-05,2]
[422637672,1779195040000,-500.0,8.955e-05,2]
[422637669,1779195040000,-500.0,8.856e-05,2]
[422637675,1779195040000,-500.0,8.956e-05,2]
[422637667,1779195040000,-500.0,8.856e-05,2]
[422637671,1779195040000,-500.0,8.856e-05,2]
[422637668,1779195040000,-500.0,8.856e-05,2]
[422637670,1779195040000,-500.0,8.856e-05,2]
[422637673,1779195040000,-151.0,8.956e-05,2]
[422637680,1779195040000,-500.0,8.956e-05,2]
[422637694,1779195040000,-344.7857023,9.055e-05,2]
[422637679,1779195040000,-725.0291,8.956e-05,2]
[422637682,1779195040000,-500.0,8.956e-05,2]
[422637684,1779195040000,-500.0,8.956e-05,2]
[422637681,1779195040000,-500.0,8.956e-05,2]
[422637686,1779195040000,-500.0,8.956e-05,2]